[Event "Live Chess"]
[Site "Chess.com"]
[Date "2024.06.02"]
[Round "-"]
[White "NAZRIZ1977"]
[Black "RomanKifliuk"]
[Result "0-1"]
[WhiteElo "2129"]
[BlackElo "2345"]
[TimeControl "300"]
[EndTime "1:31:57 PDT"]
[Termination "RomanKifliuk won by checkmate"]

1. d4 {[%clk 0:04:51.7]} 1... c5 {[%clk 0:04:58.5]} 2. d5 {[%clk 0:04:50.6]}
2... e5 {[%clk 0:04:57.2]} 3. e4 {[%clk 0:04:49.2]} 3... d6 {[%clk 0:04:56.6]}
4. Nc3 {[%clk 0:04:48.3]} 4... Ne7 {[%clk 0:04:55.9]} 5. Bb5+ {[%clk 0:04:47.4]}
5... Nd7 {[%clk 0:04:54.8]} 6. Be2 {[%clk 0:04:47]} 6... Ng6 {[%clk 0:04:54]} 7.
a4 {[%clk 0:04:46.5]} 7... Be7 {[%clk 0:04:04.7]} 8. Nf3 {[%clk 0:04:44.4]} 8...
O-O {[%clk 0:03:57]} 9. O-O {[%clk 0:04:43.5]} 9... f5 {[%clk 0:03:50.9]} 10.
exf5 {[%clk 0:04:40.4]} 10... Rxf5 {[%clk 0:03:47.1]} 11. Bd3 {[%clk 0:04:31.1]}
11... Rh5 {[%clk 0:03:40.5]} 12. Nd2 {[%clk 0:04:24.4]} 12... Rh4 {[%clk
0:03:29.2]} 13. g3 {[%clk 0:04:22.3]} 13... Rd4 {[%clk 0:03:27]} 14. Ne2 {[%clk
0:04:07.7]} 14... Rxd3 {[%clk 0:03:23.4]} 15. cxd3 {[%clk 0:04:06.7]} 15... Nf6
{[%clk 0:03:20.1]} 16. Nc3 {[%clk 0:04:02.5]} 16... Bh3 {[%clk 0:03:10.5]} 17.
Re1 {[%clk 0:04:00]} 17... Ng4 {[%clk 0:03:02.5]} 18. Nde4 {[%clk 0:03:58.1]}
18... Qf8 {[%clk 0:02:56.6]} 19. Be3 {[%clk 0:03:54.8]} 19... Nf4 {[%clk
0:02:53]} 20. gxf4 {[%clk 0:03:35]} 20... exf4 {[%clk 0:02:52.9]} 21. Qf3 {[%clk
0:03:25.5]} 21... fxe3 {[%clk 0:02:14.5]} 22. Qxf8+ {[%clk 0:03:21.4]} 22...
Rxf8 {[%clk 0:02:11.4]} 23. fxe3 {[%clk 0:03:20.8]} 23... Bh4 {[%clk 0:02:06.4]}
24. Ng3 {[%clk 0:03:16.3]} 24... Rf2 {[%clk 0:02:01.2]} 25. Re2 {[%clk
0:03:07.8]} 25... Rf3 {[%clk 0:01:50.7]} 26. Nce4 {[%clk 0:03:02.3]} 26... Nxe3
{[%clk 0:01:43.2]} 27. Nxd6 {[%clk 0:02:57.6]} 27... h5 {[%clk 0:01:32]} 28.
Rae1 {[%clk 0:02:54.4]} 28... Nxd5 {[%clk 0:01:29.4]} 29. Re8+ {[%clk
0:02:27.2]} 29... Kh7 {[%clk 0:01:27.5]} 30. Nde4 {[%clk 0:02:25.6]} 30... Nf4
{[%clk 0:01:19.7]} 31. Re2 {[%clk 0:01:31.3]} 31... Nxe2+ {[%clk 0:01:15.6]} 32.
Nxe2 {[%clk 0:01:29.6]} 32... Rf1# {[%clk 0:01:13.9]} 0-1

[Event "Live Chess"]
[Site "Chess.com"]
[Date "2024.06.02"]
[Round "-"]
[White "jimwad"]
[Black "booktrunk"]
[Result "0-1"]
[WhiteElo "1315"]
[BlackElo "1512"]
[TimeControl "300"]
[EndTime "1:32:40 PDT"]
[Termination "booktrunk won by resignation"]

1. d4 {[%clk 0:04:59.6]} 1... b6 {[%clk 0:04:55.8]} 2. e4 {[%clk 0:04:58]} 2...
Bb7 {[%clk 0:04:53.3]} 3. Nc3 {[%clk 0:04:57.2]} 3... e6 {[%clk 0:04:50.5]} 4.
Bd3 {[%clk 0:04:56]} 4... h6 {[%clk 0:04:37]} 5. Nf3 {[%clk 0:04:54.8]} 5... Be7
{[%clk 0:04:35]} 6. O-O {[%clk 0:04:53.1]} 6... d6 {[%clk 0:04:32.8]} 7. Re1
{[%clk 0:04:50]} 7... Nd7 {[%clk 0:04:32.7]} 8. Bf4 {[%clk 0:04:43.2]} 8... g5
{[%clk 0:04:30.3]} 9. Bg3 {[%clk 0:04:41.4]} 9... Ngf6 {[%clk 0:04:28.7]} 10.
Nb5 {[%clk 0:04:31.2]} 10... Nh5 {[%clk 0:04:23.8]} 11. Nxc7+ {[%clk 0:04:28.5]}
11... Qxc7 {[%clk 0:04:18.3]} 12. e5 {[%clk 0:04:11.2]} 12... Nxg3 {[%clk
0:04:15.2]} 13. hxg3 {[%clk 0:04:09.8]} 13... d5 {[%clk 0:04:10.4]} 14. c3
{[%clk 0:04:04.2]} 14... Qc8 {[%clk 0:04:02.6]} 15. Bb5 {[%clk 0:04:00.5]} 15...
Ba6 {[%clk 0:04:00.1]} 16. Bxa6 {[%clk 0:03:59.3]} 16... Qxa6 {[%clk 0:03:58]}
17. Qe2 {[%clk 0:03:42.9]} 17... Qxe2 {[%clk 0:03:54.8]} 18. Rxe2 {[%clk
0:03:42]} 18... g4 {[%clk 0:03:53.3]} 19. Nh4 {[%clk 0:03:40.5]} 19... Rg8
{[%clk 0:03:44.7]} 20. Kh2 {[%clk 0:03:35.4]} 20... h5 {[%clk 0:03:42.5]} 21.
Rf1 {[%clk 0:03:20.6]} 21... Nf8 {[%clk 0:03:39.9]} 22. f4 {[%clk 0:03:18.9]}
22... gxf3 {[%clk 0:03:37.7]} 23. Rxf3 {[%clk 0:03:08.6]} 23... Ng6 {[%clk
0:03:32.9]} 24. Nxg6 {[%clk 0:03:05.9]} 24... Rxg6 {[%clk 0:03:30.5]} 25. Ref2
{[%clk 0:03:04.8]} 25... Rg7 {[%clk 0:03:27.8]} 26. Kh3 {[%clk 0:02:59.3]} 26...
O-O-O {[%clk 0:03:25.4]} 27. Rf1 {[%clk 0:02:47.7]} 27... Rf8 {[%clk 0:03:21]}
28. b4 {[%clk 0:02:38]} 28... Kd8 {[%clk 0:03:18.8]} 29. a4 {[%clk 0:02:37]}
29... Ke8 {[%clk 0:03:17.8]} 30. Ra1 {[%clk 0:02:31.5]} 30... f6 {[%clk
0:03:12]} 31. a5 {[%clk 0:02:30.4]} 31... b5 {[%clk 0:03:09.9]} 32. Raf1 {[%clk
0:02:26.9]} 32... fxe5 {[%clk 0:03:06.3]} 33. Rxf8+ {[%clk 0:02:21.4]} 33...
Bxf8 {[%clk 0:03:04.6]} 34. dxe5 {[%clk 0:02:18.4]} 34... Be7 {[%clk 0:03:00.6]}
35. Rf3 {[%clk 0:02:08.5]} 35... a6 {[%clk 0:02:58.2]} 36. Re3 {[%clk
0:02:06.9]} 36... Kd7 {[%clk 0:02:55.8]} 37. Kh2 {[%clk 0:01:53.2]} 37... Bg5
{[%clk 0:02:51.3]} 38. Rf3 {[%clk 0:01:51.3]} 38... Ke7 {[%clk 0:02:49.6]} 39.
Rd3 {[%clk 0:01:41]} 39... Bc1 {[%clk 0:02:42.1]} 40. Rf3 {[%clk 0:01:37]} 40...
Rg5 {[%clk 0:02:39.7]} 41. Kh3 {[%clk 0:01:28.6]} 41... Rxe5 {[%clk 0:02:37.6]}
42. Kh4 {[%clk 0:01:25.4]} 42... Bh6 {[%clk 0:02:25.5]} 43. g4 {[%clk
0:01:19.4]} 43... hxg4 {[%clk 0:02:23.6]} 44. Kxg4 {[%clk 0:01:18.1]} 44... Rg5+
{[%clk 0:02:20]} 45. Kh3 {[%clk 0:01:16]} 45... Rf5 {[%clk 0:02:15.5]} 46. Rg3
{[%clk 0:01:04.3]} 46... Kf7 {[%clk 0:02:11.4]} 47. Rf3 {[%clk 0:01:00.5]} 47...
Rxf3+ {[%clk 0:02:09.1]} 48. gxf3 {[%clk 0:00:59.7]} 48... Bd2 {[%clk
0:02:07.5]} 49. Kg4 {[%clk 0:00:56.7]} 49... Bxc3 {[%clk 0:02:06]} 50. Kf4
{[%clk 0:00:55.9]} 50... Bxb4 {[%clk 0:02:04.9]} 51. Ke5 {[%clk 0:00:54.5]}
51... Bxa5 {[%clk 0:02:03.2]} 0-1

[Event "Live Chess"]
[Site "Chess.com"]
[Date "2024.06.02"]
[Round "-"]
[White "jellhhggffhjjjjjj"]
[Black "KeithArkell"]
[Result "0-1"]
[WhiteElo "402"]
[BlackElo "2392"]
[TimeControl "300"]
[EndTime "1:33:11 PDT"]
[Termination "KeithArkell won by checkmate"]

1. d4 {[%clk 0:04:48.5]} 1... e6 {[%clk 0:04:58.9]} 2. Nf3 {[%clk 0:04:47.7]}
2... Nf6 {[%clk 0:04:57.8]} 3. Bg5 {[%clk 0:04:46.5]} 3... c5 {[%clk 0:04:56.9]}
4. c3 {[%clk 0:04:43.7]} 4... Be7 {[%clk 0:04:55.4]} 5. e3 {[%clk 0:04:41.8]}
5... b6 {[%clk 0:04:54.9]} 6. Nbd2 {[%clk 0:04:40.9]} 6... O-O {[%clk
0:04:53.3]} 7. Bb5 {[%clk 0:04:39.6]} 7... Ba6 {[%clk 0:04:52.1]} 8. Be2 {[%clk
0:04:27]} 8... Bxe2 {[%clk 0:04:50.9]} 9. Qxe2 {[%clk 0:04:25.8]} 9... d6 {[%clk
0:04:48.8]} 10. Qd3 {[%clk 0:04:21.5]} 10... Nbd7 {[%clk 0:04:47.7]} 11. Nh4
{[%clk 0:04:18.2]} 11... d5 {[%clk 0:04:44.8]} 12. O-O-O {[%clk 0:03:38.2]}
12... Ne4 {[%clk 0:04:43.7]} 13. Bf4 {[%clk 0:03:33.3]} 13... Nxf2 {[%clk
0:04:41.7]} 14. Qe2 {[%clk 0:03:30.5]} 14... Nxd1 {[%clk 0:04:40.7]} 15. Rxd1
{[%clk 0:03:29.1]} 15... Bxh4 {[%clk 0:04:39.8]} 16. g3 {[%clk 0:03:27.3]} 16...
Bg5 {[%clk 0:04:38.8]} 17. Bxg5 {[%clk 0:03:21.4]} 17... Qxg5 {[%clk 0:04:37.5]}
18. Qg2 {[%clk 0:03:17.4]} 18... Nf6 {[%clk 0:04:35.5]} 19. h4 {[%clk
0:03:16.1]} 19... Qg4 {[%clk 0:04:34.1]} 20. Qf3 {[%clk 0:03:11.3]} 20... Qxf3
{[%clk 0:04:33]} 21. Nxf3 {[%clk 0:03:10.9]} 21... cxd4 {[%clk 0:04:32.5]} 22.
exd4 {[%clk 0:03:07.3]} 22... Ne4 {[%clk 0:04:31.2]} 23. Ng5 {[%clk 0:03:02.1]}
23... Nxg5 {[%clk 0:04:29.9]} 24. hxg5 {[%clk 0:03:00.9]} 24... f6 {[%clk
0:04:29.2]} 25. g6 {[%clk 0:02:58.8]} 25... hxg6 {[%clk 0:04:28.1]} 26. Rg1
{[%clk 0:02:56.5]} 26... Kf7 {[%clk 0:04:26.8]} 27. g4 {[%clk 0:02:55.9]} 27...
Rh8 {[%clk 0:04:26.1]} 28. g5 {[%clk 0:02:54.3]} 28... Rh2 {[%clk 0:04:24.7]}
29. gxf6 {[%clk 0:02:42.6]} 29... gxf6 {[%clk 0:04:24.6]} 30. Rf1 {[%clk
0:02:40.5]} 30... Rah8 {[%clk 0:04:23.5]} 31. Rd1 {[%clk 0:02:35.8]} 31... Rg2
{[%clk 0:04:21.9]} 32. c4 {[%clk 0:02:30.2]} 32... dxc4 {[%clk 0:04:19.9]} 33.
d5 {[%clk 0:02:28.7]} 33... exd5 {[%clk 0:04:19.4]} 34. Rxd5 {[%clk 0:02:28.2]}
34... Rhh2 {[%clk 0:04:18]} 35. Rd7+ {[%clk 0:02:26.1]} 35... Ke6 {[%clk
0:04:17.4]} 36. Rxa7 {[%clk 0:02:23.8]} 36... Rg1# {[%clk 0:04:16.5]} 0-1

[Event "Live Chess"]
[Site "Chess.com"]
[Date "2024.06.02"]
[Round "-"]
[White "WelshTiger"]
[Black "AlanBstard10"]
[Result "1-0"]
[WhiteElo "2441"]
[BlackElo "1203"]
[TimeControl "300"]
[EndTime "1:33:43 PDT"]
[Termination "WelshTiger won by checkmate"]

1. e4 {[%clk 0:04:58]} 1... d5 {[%clk 0:04:58.8]} 2. exd5 {[%clk 0:04:57.1]}
2... Nf6 {[%clk 0:04:57.7]} 3. Bb5+ {[%clk 0:04:55]} 3... Bd7 {[%clk 0:04:56.1]}
4. Bc4 {[%clk 0:04:54]} 4... Bg4 {[%clk 0:04:53.9]} 5. f3 {[%clk 0:04:53.5]}
5... Bd7 {[%clk 0:04:51.7]} 6. Nc3 {[%clk 0:04:52.6]} 6... a6 {[%clk 0:04:49.9]}
7. a4 {[%clk 0:04:51.3]} 7... g6 {[%clk 0:04:46.2]} 8. Nge2 {[%clk 0:04:49]}
8... Bg7 {[%clk 0:04:45.2]} 9. d4 {[%clk 0:04:48.6]} 9... O-O {[%clk 0:04:44.1]}
10. O-O {[%clk 0:04:46.5]} 10... c6 {[%clk 0:04:40.8]} 11. dxc6 {[%clk
0:04:45.3]} 11... Nxc6 {[%clk 0:04:40]} 12. Be3 {[%clk 0:04:44.3]} 12... Qc7
{[%clk 0:04:35]} 13. Ba2 {[%clk 0:04:42]} 13... Rfe8 {[%clk 0:04:29.3]} 14. Qd2
{[%clk 0:04:39.2]} 14... Qc8 {[%clk 0:04:25.5]} 15. Rfe1 {[%clk 0:04:34.3]}
15... e6 {[%clk 0:04:23.9]} 16. Nf4 {[%clk 0:04:30.8]} 16... Ne7 {[%clk
0:04:18.9]} 17. Nd3 {[%clk 0:04:28.4]} 17... Bc6 {[%clk 0:04:10]} 18. Ne5 {[%clk
0:04:25.6]} 18... Bd7 {[%clk 0:04:07]} 19. Ne4 {[%clk 0:04:21.1]} 19... Nxe4
{[%clk 0:04:05.3]} 20. fxe4 {[%clk 0:04:19.8]} 20... Nc6 {[%clk 0:04:04.3]} 21.
Nxd7 {[%clk 0:04:16.7]} 21... Qxd7 {[%clk 0:04:02.5]} 22. e5 {[%clk 0:04:16.2]}
22... Rac8 {[%clk 0:03:49.9]} 23. c3 {[%clk 0:04:14.8]} 23... Ne7 {[%clk
0:03:46.8]} 24. a5 {[%clk 0:04:05.1]} 24... Nf5 {[%clk 0:03:45.3]} 25. Bg5
{[%clk 0:04:01.5]} 25... h6 {[%clk 0:03:39.6]} 26. Bf4 {[%clk 0:03:56.1]} 26...
g5 {[%clk 0:03:37.4]} 27. Be3 {[%clk 0:03:55.1]} 27... Nxe3 {[%clk 0:03:25.6]}
28. Qxe3 {[%clk 0:03:53.9]} 28... Qb5 {[%clk 0:03:17.6]} 29. b4 {[%clk
0:03:39.3]} 29... Red8 {[%clk 0:03:07.7]} 30. Rac1 {[%clk 0:03:37.8]} 30... Rf8
{[%clk 0:03:05.4]} 31. Bb1 {[%clk 0:03:36.9]} 31... Rfd8 {[%clk 0:03:02.7]} 32.
Rf1 {[%clk 0:03:34.6]} 32... Rf8 {[%clk 0:03:00.6]} 33. Qe4 {[%clk 0:03:32.9]}
33... Qc6 {[%clk 0:02:57.1]} 34. Qh7# {[%clk 0:03:31.3]} 1-0

[Event "Live Chess"]
[Site "Chess.com"]
[Date "2024.06.02"]
[Round "-"]
[White "MagnersCarlsberg2870"]
[Black "Cimon"]
[Result "0-1"]
[WhiteElo "1809"]
[BlackElo "1815"]
[TimeControl "300"]
[EndTime "1:33:48 PDT"]
[Termination "Cimon won by resignation"]

1. Nf3 {[%clk 0:04:57.1]} 1... Nf6 {[%clk 0:04:58.1]} 2. g3 {[%clk 0:04:53.9]}
2... g6 {[%clk 0:04:56.5]} 3. Bg2 {[%clk 0:04:53.2]} 3... Bg7 {[%clk 0:04:55.4]}
4. Kf1 {[%clk 0:04:52.6]} 4... d6 {[%clk 0:04:53.6]} 5. d3 {[%clk 0:04:51.6]}
5... O-O {[%clk 0:04:51.2]} 6. e4 {[%clk 0:04:50.6]} 6... c5 {[%clk 0:04:48.3]}
7. Nbd2 {[%clk 0:04:49.1]} 7... Nbd7 {[%clk 0:04:46.4]} 8. h3 {[%clk 0:04:48.5]}
8... b5 {[%clk 0:04:42.5]} 9. h4 {[%clk 0:04:47]} 9... Rb8 {[%clk 0:04:40.7]}
10. h5 {[%clk 0:04:39.9]} 10... Ne5 {[%clk 0:04:36.4]} 11. hxg6 {[%clk
0:04:37.3]} 11... fxg6 {[%clk 0:04:34.9]} 12. Nxe5 {[%clk 0:04:34.3]} 12... dxe5
{[%clk 0:04:33.5]} 13. Nf3 {[%clk 0:04:31.9]} 13... Bg4 {[%clk 0:04:30]} 14. Bh3
{[%clk 0:04:22.1]} 14... h5 {[%clk 0:04:24.5]} 15. Bxg4 {[%clk 0:04:19.1]} 15...
Nxg4 {[%clk 0:04:23.3]} 16. Kg2 {[%clk 0:04:02]} 16... Qd6 {[%clk 0:04:19.3]}
17. Ng5 {[%clk 0:03:51]} 17... Rxf2+ {[%clk 0:04:16.8]} 18. Kh3 {[%clk
0:03:46.7]} 18... Qd7 {[%clk 0:04:11]} 19. Nf3 {[%clk 0:03:29]} 19... Ne3+
{[%clk 0:04:06.7]} 0-1

[Event "Live Chess"]
[Site "Chess.com"]
[Date "2024.06.02"]
[Round "-"]
[White "juniortay"]
[Black "raimundklein"]
[Result "1-0"]
[WhiteElo "2377"]
[BlackElo "1570"]
[TimeControl "300"]
[EndTime "1:34:07 PDT"]
[Termination "juniortay won by resignation"]

1. e4 {[%clk 0:04:57.3]} 1... c6 {[%clk 0:04:58.9]} 2. Nf3 {[%clk 0:04:56.3]}
2... d5 {[%clk 0:04:57.4]} 3. exd5 {[%clk 0:04:56.2]} 3... cxd5 {[%clk
0:04:56.9]} 4. Ne5 {[%clk 0:04:56.1]} 4... a6 {[%clk 0:04:37.4]} 5. d4 {[%clk
0:04:52]} 5... g6 {[%clk 0:04:35.4]} 6. Bd3 {[%clk 0:04:50.5]} 6... Nf6 {[%clk
0:04:33.7]} 7. c3 {[%clk 0:04:49.6]} 7... Bg7 {[%clk 0:04:30.7]} 8. O-O {[%clk
0:04:49.2]} 8... O-O {[%clk 0:04:29.2]} 9. Nd2 {[%clk 0:04:47.7]} 9... Nc6
{[%clk 0:04:26.7]} 10. f4 {[%clk 0:04:47.2]} 10... Qc7 {[%clk 0:03:36.7]} 11.
Qe2 {[%clk 0:04:43.8]} 11... b5 {[%clk 0:03:28.6]} 12. a3 {[%clk 0:04:40.5]}
12... Na5 {[%clk 0:03:26.9]} 13. Ndf3 {[%clk 0:04:38.1]} 13... Nc4 {[%clk
0:03:23.9]} 14. Rb1 {[%clk 0:04:35.6]} 14... Bf5 {[%clk 0:03:12.1]} 15. Bxf5
{[%clk 0:04:33.6]} 15... gxf5 {[%clk 0:03:11.1]} 16. Ng5 {[%clk 0:04:27.1]}
16... e6 {[%clk 0:03:07.4]} 17. Rf3 {[%clk 0:04:25.6]} 17... Ne4 {[%clk
0:02:51.4]} 18. Nxe4 {[%clk 0:04:17.8]} 18... fxe4 {[%clk 0:02:45.5]} 19. Rh3
{[%clk 0:04:17.1]} 19... f5 {[%clk 0:02:40.6]} 20. Qh5 {[%clk 0:04:11.3]} 20...
Bxe5 {[%clk 0:02:39.6]} 21. fxe5 {[%clk 0:04:09.1]} 21... Kh8 {[%clk 0:02:36.4]}
22. Bg5 {[%clk 0:04:07.9]} 22... Rf7 {[%clk 0:02:13.7]} 23. Qh6 {[%clk
0:04:02.1]} 23... Raf8 {[%clk 0:02:08.4]} 24. Bf6+ {[%clk 0:03:58]} 24... Rxf6
{[%clk 0:02:07.5]} 25. exf6 {[%clk 0:03:57.9]} 25... Rg8 {[%clk 0:02:04.5]} 26.
Rf1 {[%clk 0:03:31.9]} 26... Qf7 {[%clk 0:01:48.1]} 27. b3 {[%clk 0:03:11]}
27... Nb6 {[%clk 0:01:30.4]} 28. Qf4 {[%clk 0:02:59.4]} 28... Qg6 {[%clk
0:01:12.4]} 29. Rg3 {[%clk 0:02:56.8]} 29... Qxf6 {[%clk 0:01:11.2]} 30. Rxg8+
{[%clk 0:02:53.7]} 30... Kxg8 {[%clk 0:01:09.6]} 31. Qb8+ {[%clk 0:02:52.7]}
31... Kg7 {[%clk 0:01:07.1]} 32. Qxb6 {[%clk 0:02:51.8]} 1-0

[Event "Live Chess"]
[Site "Chess.com"]
[Date "2024.06.02"]
[Round "-"]
[White "ProfPoisson"]
[Black "ameetghasi100"]
[Result "0-1"]
[WhiteElo "1333"]
[BlackElo "2792"]
[TimeControl "300"]
[EndTime "1:34:16 PDT"]
[Termination "ameetghasi100 won on time"]

1. e4 {[%clk 0:04:55.1]} 1... c5 {[%clk 0:04:59.9]} 2. Nc3 {[%clk 0:04:48.6]}
2... g6 {[%clk 0:04:59.8]} 3. f4 {[%clk 0:04:46.4]} 3... Bg7 {[%clk 0:04:59.7]}
4. Nf3 {[%clk 0:04:43.3]} 4... a6 {[%clk 0:04:59.6]} 5. a4 {[%clk 0:04:40.6]}
5... b6 {[%clk 0:04:58.7]} 6. Bc4 {[%clk 0:04:39]} 6... Bb7 {[%clk 0:04:58.1]}
7. O-O {[%clk 0:04:37.2]} 7... Nc6 {[%clk 0:04:55.3]} 8. d3 {[%clk 0:04:34.4]}
8... Rc8 {[%clk 0:04:52.8]} 9. Qe1 {[%clk 0:04:29.4]} 9... Nf6 {[%clk
0:04:50.3]} 10. Nd5 {[%clk 0:04:19.3]} 10... Na5 {[%clk 0:04:47.5]} 11. Nxf6+
{[%clk 0:04:16.2]} 11... Bxf6 {[%clk 0:04:47.4]} 12. e5 {[%clk 0:04:10.3]} 12...
Bg7 {[%clk 0:04:46]} 13. Ba2 {[%clk 0:04:05.9]} 13... d5 {[%clk 0:04:44.2]} 14.
Qg3 {[%clk 0:03:46.5]} 14... e6 {[%clk 0:04:40]} 15. f5 {[%clk 0:03:40]} 15...
exf5 {[%clk 0:04:37.6]} 16. Ng5 {[%clk 0:03:35.9]} 16... h6 {[%clk 0:04:33.7]}
17. Nf3 {[%clk 0:03:23.6]} 17... O-O {[%clk 0:04:28.9]} 18. Qh3 {[%clk
0:03:13.9]} 18... h5 {[%clk 0:04:26.6]} 19. Ng5 {[%clk 0:03:03]} 19... Qd7
{[%clk 0:04:24.3]} 20. Bd2 {[%clk 0:02:11]} 20... Nc6 {[%clk 0:04:20.6]} 21. e6
{[%clk 0:02:03.2]} 21... fxe6 {[%clk 0:04:10]} 22. Rae1 {[%clk 0:02:01.4]} 22...
Rce8 {[%clk 0:04:04.7]} 23. g4 {[%clk 0:01:40.8]} 23... fxg4 {[%clk 0:04:02.1]}
24. Qg2 {[%clk 0:01:34.2]} 24... Rxf1+ {[%clk 0:03:59.3]} 25. Rxf1 {[%clk
0:01:31.3]} 25... Nd4 {[%clk 0:03:56.9]} 26. Nf7 {[%clk 0:01:18.3]} 26... Nf3+
{[%clk 0:03:50.1]} 27. Rxf3 {[%clk 0:00:57.1]} 27... gxf3 {[%clk 0:03:50]} 28.
Qxg6 {[%clk 0:00:54.6]} 28... Qxf7 {[%clk 0:03:48.8]} 29. Qg3 {[%clk 0:00:44]}
29... f2+ {[%clk 0:03:34.1]} 30. Kf1 {[%clk 0:00:41.4]} 30... Rf8 {[%clk
0:03:27.1]} 31. Be3 {[%clk 0:00:36.9]} 31... d4 {[%clk 0:03:21.3]} 32. Bh6
{[%clk 0:00:32.8]} 32... Bd5 {[%clk 0:03:18.5]} 33. Bxd5 {[%clk 0:00:29.1]}
33... exd5 {[%clk 0:03:15.5]} 34. Qd6 {[%clk 0:00:19.2]} 34... Kh7 {[%clk
0:03:11.5]} 35. Bxg7 {[%clk 0:00:16]} 35... Kxg7 {[%clk 0:03:11.4]} 36. Qe5+
{[%clk 0:00:13.5]} 36... Qf6 {[%clk 0:03:10.2]} 37. Qxh5 {[%clk 0:00:11.1]}
37... Qg6 {[%clk 0:03:10.1]} 38. Qe5+ {[%clk 0:00:09.6]} 38... Kh7 {[%clk
0:03:07.8]} 39. Qc7+ {[%clk 0:00:07.6]} 39... Rf7 {[%clk 0:03:07]} 40. Qe5
{[%clk 0:00:04.1]} 40... Qg1+ {[%clk 0:03:04.7]} 0-1

[Event "Live Chess"]
[Site "Chess.com"]
[Date "2024.06.02"]
[Round "-"]
[White "DavrosLight"]
[Black "NeilDruggan73"]
[Result "0-1"]
[WhiteElo "791"]
[BlackElo "1711"]
[TimeControl "300"]
[EndTime "1:34:49 PDT"]
[Termination "NeilDruggan73 won by checkmate"]

1. e4 {[%clk 0:04:57.9]} 1... d6 {[%clk 0:04:59.1]} 2. d4 {[%clk 0:04:55.4]}
2... Nf6 {[%clk 0:04:58.4]} 3. Nf3 {[%clk 0:04:51.1]} 3... g6 {[%clk 0:04:57.7]}
4. Nc3 {[%clk 0:04:49.4]} 4... Bg4 {[%clk 0:04:55.9]} 5. h3 {[%clk 0:04:46.9]}
5... Bxf3 {[%clk 0:04:54.7]} 6. Qxf3 {[%clk 0:04:45.2]} 6... Nc6 {[%clk
0:04:54.6]} 7. Bb5 {[%clk 0:04:42.1]} 7... a6 {[%clk 0:04:52]} 8. Bxc6+ {[%clk
0:04:40.4]} 8... bxc6 {[%clk 0:04:51.4]} 9. O-O {[%clk 0:04:36.5]} 9... Bg7
{[%clk 0:04:50.1]} 10. e5 {[%clk 0:04:26.6]} 10... Nd7 {[%clk 0:04:44.2]} 11. e6
{[%clk 0:04:04.2]} 11... O-O {[%clk 0:04:42.2]} 12. exd7 {[%clk 0:03:56.9]}
12... Qxd7 {[%clk 0:04:42.1]} 13. Be3 {[%clk 0:03:48.2]} 13... Rab8 {[%clk
0:04:39.8]} 14. b3 {[%clk 0:03:42.8]} 14... c5 {[%clk 0:04:38.5]} 15. Ne2 {[%clk
0:03:28.9]} 15... Qb5 {[%clk 0:04:26]} 16. Rad1 {[%clk 0:03:14.1]} 16... f5
{[%clk 0:04:17.1]} 17. Qd5+ {[%clk 0:03:01]} 17... Kh8 {[%clk 0:04:15.5]} 18.
dxc5 {[%clk 0:02:54.6]} 18... Qxe2 {[%clk 0:04:13.2]} 19. c4 {[%clk 0:02:26.2]}
19... Rfe8 {[%clk 0:04:07.4]} 20. cxd6 {[%clk 0:02:09.2]} 20... exd6 {[%clk
0:04:05.5]} 21. a4 {[%clk 0:01:46.4]} 21... Re5 {[%clk 0:04:00.8]} 22. Qf7
{[%clk 0:01:33.9]} 22... c5 {[%clk 0:03:53.8]} 23. Rxd6 {[%clk 0:01:22.1]} 23...
Rf8 {[%clk 0:03:46.2]} 24. Qa7 {[%clk 0:00:51.8]} 24... f4 {[%clk 0:03:45.4]}
25. Bxc5 {[%clk 0:00:32.5]} 25... f3 {[%clk 0:03:44]} 26. gxf3 {[%clk
0:00:21.9]} 26... Qxf3 {[%clk 0:03:41.1]} 27. Rxg6 {[%clk 0:00:12.5]} 27... hxg6
{[%clk 0:03:36.2]} 28. Bxf8 {[%clk 0:00:07.2]} 28... Rg5+ {[%clk 0:03:33.5]} 29.
Kh2 {[%clk 0:00:02.3]} 29... Qg2# {[%clk 0:03:32.6]} 0-1

[Event "Live Chess"]
[Site "Chess.com"]
[Date "2024.06.02"]
[Round "-"]
[White "yarek"]
[Black "nyclone"]
[Result "1-0"]
[WhiteElo "1734"]
[BlackElo "1128"]
[TimeControl "300"]
[EndTime "1:34:50 PDT"]
[Termination "yarek won by checkmate"]

1. e4 {[%clk 0:04:57.6]} 1... e6 {[%clk 0:04:59.9]} 2. d4 {[%clk 0:04:53.4]}
2... b6 {[%clk 0:04:59]} 3. Nc3 {[%clk 0:04:46.9]} 3... Bb7 {[%clk 0:04:53.6]}
4. f3 {[%clk 0:04:45.6]} 4... Bb4 {[%clk 0:04:51.4]} 5. Bd3 {[%clk 0:04:42.1]}
5... Nf6 {[%clk 0:04:45.5]} 6. Ne2 {[%clk 0:04:40.8]} 6... O-O {[%clk
0:04:43.8]} 7. O-O {[%clk 0:04:40.3]} 7... Bxc3 {[%clk 0:04:25.4]} 8. Nxc3
{[%clk 0:04:33.4]} 8... a6 {[%clk 0:04:21.9]} 9. Bg5 {[%clk 0:04:32.7]} 9... d6
{[%clk 0:04:18]} 10. e5 {[%clk 0:04:30.1]} 10... dxe5 {[%clk 0:04:13.5]} 11.
dxe5 {[%clk 0:04:30]} 11... Nbd7 {[%clk 0:04:10.6]} 12. exf6 {[%clk 0:04:28.2]}
12... Nxf6 {[%clk 0:04:07.3]} 13. Ne4 {[%clk 0:04:21.7]} 13... Bxe4 {[%clk
0:03:46.9]} 14. fxe4 {[%clk 0:04:16.3]} 14... e5 {[%clk 0:03:38.2]} 15. Qf3
{[%clk 0:03:51.6]} 15... Qd4+ {[%clk 0:03:29.5]} 16. Kh1 {[%clk 0:03:42.6]}
16... Qd6 {[%clk 0:03:27.4]} 17. Bxf6 {[%clk 0:03:40.3]} 17... gxf6 {[%clk
0:03:19.8]} 18. Qh5 {[%clk 0:03:15.7]} 18... Kh8 {[%clk 0:03:09.1]} 19. Bc4
{[%clk 0:02:56]} 19... Qe7 {[%clk 0:02:51.9]} 20. Rf3 {[%clk 0:02:48.4]} 20...
b5 {[%clk 0:02:42.3]} 21. Rh3 {[%clk 0:02:43.8]} 21... Rg8 {[%clk 0:02:35.1]}
22. Qxh7# {[%clk 0:02:41.1]} 1-0